[Event "MCR rapid mládeže 2023 U16"]
[Site "Harachov, Czech Republic"]
[Date "2023.09.10"]
[Round "8.4"]
[White "Sotek, Simon"]
[Black "Jasso, Matej"]
[Result "0-1"]
[TimeControl "20min+5s/move"]
[WhiteElo "1526"]
[BlackElo "1794"]

1. e4 {[%clk 00:20:07]} {[%emt 00:00:02]} c5 {[%clk 00:20:08]} {[%emt
00:00:03]} 2. Nf3 {[%clk 00:20:11]} {[%emt 00:00:01]} d6 {[%clk 00:20:03]}
{[%emt 00:00:09]} 3. d4 {[%clk 00:20:14]} {[%emt 00:00:02]} cxd4 {[%clk
00:20:07]} {[%emt 00:00:02]} 4. Nxd4 {[%clk 00:20:17]} {[%emt 00:00:02]} Nf6
{[%clk 00:20:00]} {[%emt 00:00:12]} 5. Nc3 {[%clk 00:20:17]} {[%emt 00:00:05]}
a6 {[%clk 00:20:04]} {[%emt 00:00:02]} 6. g3 {[%clk 00:20:20]} {[%emt
00:00:02]} b5 {[%clk 00:19:43]} {[%emt 00:00:26]} 7. Bg2 {[%clk 00:20:07]}
{[%emt 00:00:17]} Bb7 {[%clk 00:19:44]} {[%emt 00:00:05]} 8. a3 {[%clk
00:20:01]} {[%emt 00:00:11]} Qc7 {[%clk 00:19:31]} {[%emt 00:00:17]} 9. O-O
{[%clk 00:19:38]} {[%emt 00:00:28]} g6 {[%clk 00:19:29]} {[%emt 00:00:07]} 10.
Be3 {[%clk 00:18:36]} {[%emt 00:01:07]} Bg7 {[%clk 00:19:31]} {[%emt 00:00:03]}
11. f4 {[%clk 00:17:50]} {[%emt 00:00:51]} Nbd7 {[%clk 00:19:31]} {[%emt
00:00:05]} 12. Re1 {[%clk 00:16:16]} {[%emt 00:01:39]} O-O {[%clk 00:19:10]}
{[%emt 00:00:26]} 13. Bf2 {[%clk 00:15:14]} {[%emt 00:01:07]} Rac8 {[%clk
00:17:58]} {[%emt 00:01:17]} 14. g4 {[%clk 00:14:40]} {[%emt 00:00:38]} e5
{[%clk 00:17:04]} {[%emt 00:00:59]} 15. fxe5 {[%clk 00:08:05]} {[%emt
00:06:40]} Nxe5 {[%clk 00:16:55]} {[%emt 00:00:14]} 16. Bh3 {[%clk 00:07:33]}
{[%emt 00:00:37]} Nc4 {[%clk 00:15:41]} {[%emt 00:01:20]} 17. g5 {[%clk
00:04:47]} {[%emt 00:02:51]} Nd7 {[%clk 00:14:22]} {[%emt 00:01:23]} 18. Bxd7
{[%clk 00:03:44]} {[%emt 00:01:08]} Qxd7 {[%clk 00:14:21]} {[%emt 00:00:07]} 19.
b3 {[%clk 00:01:54]} {[%emt 00:01:55]} Ne5 {[%clk 00:13:52]} {[%emt 00:00:34]}
20. Nd5 {[%clk 00:01:26]} {[%emt 00:00:33]} Bxd5 {[%clk 00:12:51]} {[%emt
00:01:05]} 21. exd5 {[%clk 00:01:28]} {[%emt 00:00:03]} Ng4 {[%clk 00:12:15]}
{[%emt 00:00:41]} 22. Qd2 {[%clk 00:00:06]} {[%emt 00:01:27]} Nxf2 {[%clk
00:12:08]} {[%emt 00:00:11]} 23. Qxf2 {[%clk 00:00:10]} {[%emt 00:00:01]} Qg4+
{[%clk 00:12:11]} {[%emt 00:00:02]} 0-1

[Event "MCR rapid mládeže 2023 U16"]
[Site "Harachov, Czech Republic"]
[Date "2023.09.10"]
[Round "8.5"]
[White "Vana, Jan"]
[Black "Martirosyan, David"]
[Result "1/2-1/2"]
[TimeControl "20min+5s/move"]
[WhiteElo "1681"]
[BlackElo "1861"]

1. e4 {[%clk 00:20:07]} {[%emt 00:00:01]} e5 {[%clk 00:20:08]} {[%emt
00:00:02]} 2. Nf3 {[%clk 00:19:54]} {[%emt 00:00:18]} Nf6 {[%clk 00:20:06]}
{[%emt 00:00:08]} 3. Nxe5 {[%clk 00:19:52]} {[%emt 00:00:07]} d6 {[%clk
00:20:09]} {[%emt 00:00:01]} 4. Nf3 {[%clk 00:19:44]} {[%emt 00:00:13]} Nxe4
{[%clk 00:20:09]} {[%emt 00:00:06]} 5. Qe2 {[%clk 00:19:43]} {[%emt 00:00:06]}
Qe7 {[%clk 00:20:09]} {[%emt 00:00:05]} 6. d3 {[%clk 00:19:41]} {[%emt
00:00:07]} Nf6 {[%clk 00:20:07]} {[%emt 00:00:06]} 7. Qxe7+ {[%clk 00:19:35]}
{[%emt 00:00:11]} Bxe7 {[%clk 00:20:09]} {[%emt 00:00:04]} 8. d4 {[%clk
00:19:38]} {[%emt 00:00:02]} d5 {[%clk 00:20:12]} {[%emt 00:00:02]} 9. Bd3
{[%clk 00:19:40]} {[%emt 00:00:03]} O-O {[%clk 00:20:08]} {[%emt 00:00:09]} 10.
O-O {[%clk 00:19:42]} {[%emt 00:00:03]} c6 {[%clk 00:19:46]} {[%emt 00:00:26]}
11. Ne5 {[%clk 00:19:32]} {[%emt 00:00:16]} Nbd7 {[%clk 00:19:44]} {[%emt
00:00:07]} 12. Bf4 {[%clk 00:19:21]} {[%emt 00:00:15]} Nxe5 {[%clk 00:19:30]}
{[%emt 00:00:20]} 13. Bxe5 {[%clk 00:19:25]} {[%emt 00:00:01]} Rd8 {[%clk
00:19:18]} {[%emt 00:00:17]} 14. Nd2 {[%clk 00:19:21]} {[%emt 00:00:09]} Be6
{[%clk 00:19:11]} {[%emt 00:00:12]} 15. Rfe1 {[%clk 00:19:09]} {[%emt
00:00:16]} Bd6 {[%clk 00:19:13]} {[%emt 00:00:03]} 16. Nf3 {[%clk 00:19:10]}
{[%emt 00:00:04]} Bxe5 {[%clk 00:19:09]} {[%emt 00:00:09]} 17. Nxe5 {[%clk
00:19:13]} {[%emt 00:00:02]} Nd7 {[%clk 00:18:36]} {[%emt 00:00:38]} 18. Nxd7
{[%clk 00:19:16]} {[%emt 00:00:02]} Rxd7 {[%clk 00:18:37]} {[%emt 00:00:04]} 19.
Re2 {[%clk 00:19:06]} {[%emt 00:00:15]} Re7 {[%clk 00:18:35]} {[%emt 00:00:07]}
20. Rae1 {[%clk 00:18:39]} {[%emt 00:00:32]} Rae8 {[%clk 00:18:36]} {[%emt
00:00:04]} 21. f4 {[%clk 00:18:04]} {[%emt 00:00:40]} Kf8 {[%clk 00:17:50]}
{[%emt 00:00:50]} 22. Kf2 {[%clk 00:17:39]} {[%emt 00:00:32]} Bg4 {[%clk
00:16:09]} {[%emt 00:01:46]} 23. Rxe7 {[%clk 00:16:49]} {[%emt 00:00:55]} Rxe7
{[%clk 00:15:31]} {[%emt 00:00:44]} 24. Rxe7 {[%clk 00:16:16]} {[%emt
00:00:37]} Kxe7 {[%clk 00:15:28]} {[%emt 00:00:08]} 25. Be2 {[%clk 00:16:16]}
{[%emt 00:00:05]} Bf5 {[%clk 00:14:09]} {[%emt 00:01:23]} 26. c3 {[%clk
00:16:18]} {[%emt 00:00:04]} f6 {[%clk 00:13:24]} {[%emt 00:00:49]} 27. Ke3
{[%clk 00:16:17]} {[%emt 00:00:06]} h6 {[%clk 00:13:02]} {[%emt 00:00:28]} 28.
Bd3 {[%clk 00:16:18]} {[%emt 00:00:04]} Bg4 {[%clk 00:12:14]} {[%emt 00:00:53]}
29. Be2 {[%emt 00:00:32]} Be6 {[%clk 00:11:31]} {[%emt 00:00:43]} 30. Bd3
{[%clk 00:15:25]} {[%emt 00:00:35]} Bg4 {[%clk 00:10:05]} {[%emt 00:01:31]} 31.
Be2 {[%clk 00:14:55]} {[%emt 00:00:36]} Bf5 {[%clk 00:08:39]} {[%emt 00:01:31]}
32. Bd3 {[%clk 00:14:16]} {[%emt 00:00:43]} Bxd3 {[%clk 00:07:51]} {[%emt
00:00:54]} 33. Kxd3 {[%clk 00:13:57]} {[%emt 00:00:21]} Ke6 {[%clk 00:07:48]}
{[%emt 00:00:11]} 34. Ke3 {[%clk 00:13:48]} {[%emt 00:00:14]} g5 {[%clk
00:07:35]} {[%emt 00:00:17]} 35. fxg5 {[%clk 00:13:32]} {[%emt 00:00:21]} fxg5
{[%clk 00:07:31]} {[%emt 00:00:09]} 36. g4 {[%clk 00:13:36]} {[%emt 00:00:02]}
Kf6 {[%clk 00:07:25]} {[%emt 00:00:10]} 37. Kd3 {[%clk 00:13:38]} {[%emt
00:00:05]} Ke6 {[%clk 00:07:25]} {[%emt 00:00:05]} 38. b4 {[%clk 00:13:33]}
{[%emt 00:00:09]} Kd6 {[%clk 00:07:15]} {[%emt 00:00:15]} 39. a4 {[%clk
00:13:36]} {[%emt 00:00:02]} a6 {[%clk 00:06:54]} {[%emt 00:00:27]} 40. a5
{[%clk 00:13:40]} {[%emt 00:00:01]} Ke6 {[%clk 00:06:42]} {[%emt 00:00:16]} 41.
Ke3 {[%clk 00:13:43]} {[%emt 00:00:02]} Kf6 {[%clk 00:06:46]} 42. Kf3 {[%emt
00:00:01]} Kg6 43. h3 {[%clk 00:13:47]} {[%emt 00:00:05]} h5 {[%clk 00:06:27]}
{[%emt 00:00:29]} 44. Ke3 {[%clk 00:13:50]} {[%emt 00:00:03]} h4 {[%clk
00:06:16]} {[%emt 00:00:16]} 45. Kd3 {[%clk 00:13:52]} {[%emt 00:00:03]} Kf6
{[%clk 00:06:20]} {[%emt 00:00:01]} 46. c4 {[%clk 00:13:54]} {[%emt 00:00:03]}
Ke6 {[%clk 00:06:18]} {[%emt 00:00:07]} 47. c5 {[%clk 00:13:59]} Kf6 {[%clk
00:06:20]} {[%emt 00:00:03]} 48. Kc2 {[%clk 00:14:03]} {[%emt 00:00:01]} Ke6
{[%clk 00:06:14]} {[%emt 00:00:10]} 49. Kd1 {[%clk 00:14:07]} Kf6 {[%clk
00:06:18]} {[%emt 00:00:02]} 50. Ke2 {[%clk 00:14:12]} Ke7 {[%clk 00:06:20]}
{[%emt 00:00:02]} 51. Kf2 {[%clk 00:14:16]} Kd7 {[%clk 00:06:24]} 52. Kg1
{[%clk 00:14:21]} Kc7 {[%clk 00:06:29]} 53. Kh1 {[%clk 00:14:25]} {[%emt
00:00:03]} Kd7 {[%clk 00:05:50]} {[%emt 00:00:44]} 54. Kg2 {[%clk 00:14:28]}
{[%emt 00:00:02]} Ke6 {[%clk 00:05:53]} {[%emt 00:00:02]} 55. Kf2 {[%clk
00:14:32]} Kf6 {[%clk 00:05:58]} 56. Ke2 {[%emt 00:00:03]} Ke6 {[%clk
00:06:02]} 57. Kd2 {[%clk 00:14:41]} Kf6 {[%clk 00:06:05]} {[%emt 00:00:02]} 58.
Kc1 {[%clk 00:14:45]} Ke6 {[%clk 00:06:06]} {[%emt 00:00:04]} 59. Kb1 {[%clk
00:14:49]} Kf6 {[%clk 00:06:10]} 60. Ka1 {[%clk 00:14:53]} Ke6 {[%clk
00:06:14]} 61. Kb2 {[%clk 00:14:53]} {[%emt 00:00:07]} Kf6 {[%clk 00:06:18]} 62.
Kb3 {[%clk 00:14:58]} Ke6 {[%clk 00:06:21]} {[%emt 00:00:03]} 63. Ka4 {[%clk
00:15:00]} {[%emt 00:00:03]} Kf6 {[%clk 00:06:24]} {[%emt 00:00:02]} 64. Ka3
{[%clk 00:15:04]} Ke6 {[%clk 00:06:26]} {[%emt 00:00:04]} 65. Kb2 {[%clk
00:15:09]} Kf6 {[%clk 00:06:30]} 66. Kc3 {[%clk 00:15:13]} Ke6 {[%clk
00:06:35]} 67. Kd3 Kf6 {[%emt 00:00:03]} 68. Ke3 {[%clk 00:15:22]} Ke6 {[%clk
00:06:39]} {[%emt 00:00:04]} 1/2-1/2

[Event "MCR rapid mládeže 2023 U16"]
[Site "Harachov, Czech Republic"]
[Date "2023.09.10"]
[Round "8.6"]
[White "Hrbek, Jachym"]
[Black "Babula, Matej"]
[Result "1/2-1/2"]
[TimeControl "20min+5s/move"]
[WhiteElo "1769"]
[BlackElo "1865"]

1. e4 {[%clk 00:20:03]} c5 {[%emt 00:00:36]} 2. b4 {[%clk 00:19:32]} {[%emt
00:00:03]} cxb4 {[%clk 00:20:11]} {[%emt 00:00:02]} 3. a3 {[%emt 00:00:36]} d5
4. exd5 {[%clk 00:19:38]} Qxd5 {[%clk 00:19:46]} {[%emt 00:00:02]} 5. Nf3
{[%clk 00:19:42]} {[%emt 00:00:01]} e5 {[%clk 00:18:54]} {[%emt 00:00:57]} 6.
c4 {[%clk 00:19:42]} {[%emt 00:00:04]} Qe6 {[%clk 00:17:52]} {[%emt 00:01:07]}
7. Bd3 {[%clk 00:19:45]} {[%emt 00:00:02]} Nf6 {[%clk 00:17:19]} {[%emt
00:00:39]} 8. O-O {[%clk 00:19:41]} {[%emt 00:00:08]} Bd6 {[%clk 00:16:35]}
{[%emt 00:00:49]} 9. Re1 {[%clk 00:19:33]} {[%emt 00:00:12]} O-O {[%clk
00:16:07]} {[%emt 00:00:34]} 10. Bf1 {[%clk 00:18:46]} {[%emt 00:00:52]} Qg4
{[%clk 00:15:01]} {[%emt 00:01:11]} 11. Qb3 {[%clk 00:10:22]} {[%emt 00:08:29]}
Nc6 {[%clk 00:13:19]} {[%emt 00:01:47]} 12. Bb2 {[%clk 00:09:44]} {[%emt
00:00:43]} bxa3 {[%clk 00:12:16]} {[%emt 00:01:09]} 13. Nxa3 {[%clk 00:09:09]}
{[%emt 00:00:39]} e4 {[%clk 00:08:25]} {[%emt 00:03:56]} 14. Nd4 {[%clk
00:07:17]} {[%emt 00:01:57]} Nxd4 {[%clk 00:08:07]} {[%emt 00:00:23]} 15. Bxd4
{[%clk 00:07:18]} {[%emt 00:00:04]} Qh5 {[%clk 00:07:48]} {[%emt 00:00:24]} 16.
h3 {[%clk 00:06:14]} {[%emt 00:01:09]} Qg6 {[%clk 00:06:47]} {[%emt 00:01:06]}
17. Nb5 {[%clk 00:03:32]} {[%emt 00:02:47]} Bf4 {[%clk 00:04:34]} {[%emt
00:02:18]} 18. Be3 {[%clk 00:01:03]} {[%emt 00:02:35]} Bxe3 {[%clk 00:04:26]}
{[%emt 00:00:12]} 19. Rxe3 {[%clk 00:01:03]} {[%emt 00:00:05]} Bd7 {[%clk
00:02:39]} {[%emt 00:01:52]} 20. Nc7 {[%clk 00:00:26]} {[%emt 00:00:42]} Rab8
{[%clk 00:02:03]} {[%emt 00:00:41]} 21. Rxa7 {[%clk 00:00:20]} {[%emt
00:00:11]} Bc6 {[%clk 00:02:05]} {[%emt 00:00:03]} 22. Nd5 {[%clk 00:00:15]}
{[%emt 00:00:10]} Bxd5 {[%clk 00:01:22]} {[%emt 00:00:48]} 23. cxd5 {[%clk
00:00:19]} b6 {[%clk 00:01:15]} {[%emt 00:00:12]} 24. Bc4 {[%clk 00:00:10]}
{[%emt 00:00:13]} b5 {[%clk 00:00:50]} {[%emt 00:00:30]} 25. Bxb5 {[%clk
00:00:09]} {[%emt 00:00:06]} Qf5 {[%clk 00:00:53]} {[%emt 00:00:03]} 26. Qc4
{[%clk 00:00:08]} {[%emt 00:00:06]} Qxd5 {[%clk 00:00:32]} {[%emt 00:00:25]} 27.
Qxd5 {[%clk 00:00:08]} {[%emt 00:00:05]} Nxd5 {[%clk 00:00:36]} 28. Rb3 {[%clk
00:00:12]} {[%emt 00:00:01]} g6 {[%clk 00:00:24]} {[%emt 00:00:17]} 29. Bc4
{[%clk 00:00:15]} {[%emt 00:00:02]} Rxb3 {[%clk 00:00:17]} {[%emt 00:00:12]} 30.
Bxb3 {[%clk 00:00:19]} Nf4 {[%clk 00:00:21]} {[%emt 00:00:01]} 31. Kh2 {[%clk
00:00:16]} {[%emt 00:00:09]} 1/2-1/2

[Event "MCR rapid mládeže 2023 U16"]
[Site "Harachov, Czech Republic"]
[Date "2023.09.10"]
[Round "8.7"]
[White "Krajicek, Matej"]
[Black "Svadlenka, Dominik"]
[Result "0-1"]
[TimeControl "20min+5s/move"]
[WhiteElo "1565"]
[BlackElo "1588"]

1. e4 {[%clk 00:20:07]} {[%emt 00:00:02]} c6 {[%clk 00:20:10]} {[%emt
00:00:01]} 2. d4 {[%clk 00:20:08]} {[%emt 00:00:03]} d5 {[%clk 00:20:14]}
{[%emt 00:00:01]} 3. e5 {[%clk 00:20:12]} {[%emt 00:00:01]} c5 {[%clk
00:20:17]} {[%emt 00:00:02]} 4. Bb5+ {[%clk 00:20:15]} {[%emt 00:00:02]} Nc6
{[%clk 00:20:21]} {[%emt 00:00:02]} 5. dxc5 {[%clk 00:20:03]} {[%emt 00:00:17]}
Bf5 {[%clk 00:20:13]} {[%emt 00:00:13]} 6. Nc3 {[%clk 00:15:53]} {[%emt
00:04:14]} e6 {[%clk 00:20:17]} {[%emt 00:00:01]} 7. Be3 {[%clk 00:15:06]}
{[%emt 00:00:52]} Qc7 {[%clk 00:20:21]} {[%emt 00:00:01]} 8. Bxc6+ {[%clk
00:14:08]} {[%emt 00:01:02]} bxc6 {[%clk 00:20:24]} {[%emt 00:00:03]} 9. Nf3
{[%clk 00:13:02]} {[%emt 00:01:11]} Rb8 {[%clk 00:20:08]} {[%emt 00:00:21]} 10.
Rb1 {[%clk 00:11:33]} {[%emt 00:01:34]} Bg4 {[%clk 00:20:10]} {[%emt 00:00:02]}
11. h3 {[%clk 00:11:24]} {[%emt 00:00:14]} Bxf3 {[%clk 00:20:04]} {[%emt
00:00:12]} 12. Qxf3 {[%clk 00:11:25]} {[%emt 00:00:03]} Ne7 {[%clk 00:19:46]}
{[%emt 00:00:23]} 13. Bd4 {[%clk 00:09:20]} {[%emt 00:02:10]} Nf5 {[%clk
00:18:09]} {[%emt 00:01:42]} 14. Qd3 {[%clk 00:08:46]} {[%emt 00:00:39]} Qa5
{[%clk 00:18:10]} {[%emt 00:00:04]} 15. O-O {[%clk 00:07:17]} {[%emt 00:01:34]}
Nxd4 {[%clk 00:17:48]} {[%emt 00:00:28]} 16. Qxd4 {[%clk 00:07:19]} {[%emt
00:00:03]} Bxc5 {[%clk 00:17:40]} {[%emt 00:00:13]} 17. Qg4 {[%clk 00:05:42]}
{[%emt 00:01:42]} O-O {[%clk 00:17:43]} {[%emt 00:00:02]} 18. Rfd1 {[%clk
00:04:11]} {[%emt 00:01:35]} Bb4 {[%clk 00:16:49]} {[%emt 00:00:59]} 19. Ne2
{[%clk 00:02:17]} {[%emt 00:01:59]} Qxa2 {[%clk 00:16:03]} {[%emt 00:00:52]} 20.
Nf4 {[%clk 00:00:22]} {[%emt 00:01:59]} Bc3 {[%clk 00:15:34]} {[%emt 00:00:34]}
21. Ra1 {[%clk 00:00:11]} {[%emt 00:00:16]} Qxb2 {[%clk 00:15:22]} {[%emt
00:00:17]} 22. Rxa7 {[%clk 00:00:09]} {[%emt 00:00:08]} Bxe5 {[%clk 00:15:03]}
{[%emt 00:00:23]} 23. Nxe6 {[%clk 00:00:09]} {[%emt 00:00:06]} fxe6 {[%clk
00:14:04]} {[%emt 00:01:04]} 24. Qxe6+ {[%clk 00:00:12]} {[%emt 00:00:02]} Kh8
{[%clk 00:14:07]} {[%emt 00:00:01]} 25. Re1 {[%clk 00:00:07]} {[%emt 00:00:10]}
Qd4 {[%clk 00:11:26]} {[%emt 00:02:47]} 26. Qxe5 {[%clk 00:00:07]} {[%emt
00:00:05]} Qxf2+ {[%clk 00:11:23]} {[%emt 00:00:07]} 27. Kh2 {[%clk 00:00:10]}
{[%emt 00:00:02]} Qxa7 {[%clk 00:11:26]} {[%emt 00:00:03]} 28. Qg3 {[%clk
00:00:12]} {[%emt 00:00:02]} Rbe8 {[%clk 00:11:19]} {[%emt 00:00:13]} 29. Rb1
{[%clk 00:00:06]} {[%emt 00:00:11]} Qf7 {[%clk 00:11:17]} {[%emt 00:00:07]} 30.
Rg1 {[%clk 00:00:06]} {[%emt 00:00:05]} Qf4 {[%clk 00:11:20]} {[%emt 00:00:02]}
0-1

[Event "MCR rapid mládeže 2023 U16"]
[Site "Harachov, Czech Republic"]
[Date "2023.09.10"]
[Round "8.8"]
[White "Topencik, Bruno"]
[Black "Striz, Tadeas"]
[Result "1-0"]
[TimeControl "20min+5s/move"]
[WhiteElo "1451"]
[BlackElo "1454"]

1. e4 {[%clk 00:20:07]} {[%emt 00:00:02]} c5 {[%clk 00:20:09]} 2. Be2 {[%clk
00:20:11]} {[%emt 00:00:02]} Nc6 {[%clk 00:20:11]} {[%emt 00:00:04]} 3. f4
{[%clk 00:20:15]} {[%emt 00:00:01]} g6 {[%clk 00:20:12]} {[%emt 00:00:03]} 4.
Nf3 {[%clk 00:20:18]} {[%emt 00:00:01]} Bg7 {[%clk 00:20:16]} {[%emt 00:00:02]}
5. c3 {[%clk 00:20:17]} {[%emt 00:00:06]} Qb6 {[%clk 00:20:08]} {[%emt
00:00:14]} 6. d3 {[%clk 00:20:04]} {[%emt 00:00:17]} e6 {[%clk 00:20:05]}
{[%emt 00:00:08]} 7. O-O {[%clk 00:19:48]} {[%emt 00:00:20]} Nge7 {[%clk
00:20:08]} {[%emt 00:00:03]} 8. Na3 {[%clk 00:19:19]} {[%emt 00:00:35]} d5
{[%clk 00:19:55]} {[%emt 00:00:18]} 9. Kh1 {[%clk 00:19:12]} {[%emt 00:00:11]}
O-O {[%clk 00:19:42]} {[%emt 00:00:18]} 10. Qe1 {[%clk 00:18:53]} {[%emt
00:00:24]} Qd8 {[%clk 00:17:56]} {[%emt 00:01:51]} 11. Qh4 {[%clk 00:18:46]}
{[%emt 00:00:12]} f6 {[%clk 00:14:23]} {[%emt 00:03:38]} 12. Nc2 {[%clk
00:17:54]} {[%emt 00:00:57]} d4 {[%clk 00:14:00]} {[%emt 00:00:29]} 13. c4
{[%clk 00:16:39]} {[%emt 00:01:20]} a6 {[%clk 00:13:30]} {[%emt 00:00:33]} 14.
a4 {[%clk 00:15:39]} {[%emt 00:01:06]} Qb6 {[%clk 00:10:46]} {[%emt 00:02:50]}
15. Qe1 {[%clk 00:10:51]} {[%emt 00:04:52]} Bd7 {[%clk 00:09:29]} {[%emt
00:01:23]} 16. a5 {[%clk 00:10:08]} {[%emt 00:00:48]} Qc7 {[%clk 00:09:07]}
{[%emt 00:00:27]} 17. Bd2 {[%clk 00:10:08]} {[%emt 00:00:06]} Rfb8 {[%clk
00:08:42]} {[%emt 00:00:29]} 18. b4 {[%clk 00:09:39]} {[%emt 00:00:34]} b6
{[%clk 00:06:15]} {[%emt 00:02:32]} 19. axb6 {[%clk 00:08:56]} {[%emt
00:00:49]} Qxb6 {[%clk 00:05:55]} {[%emt 00:00:25]} 20. Qf2 {[%clk 00:08:14]}
{[%emt 00:00:47]} e5 {[%clk 00:04:25]} {[%emt 00:01:34]} 21. fxe5 {[%clk
00:07:59]} {[%emt 00:00:20]} fxe5 {[%clk 00:04:28]} {[%emt 00:00:02]} 22. Qh4
{[%clk 00:06:59]} {[%emt 00:01:05]} Rf8 {[%clk 00:01:17]} {[%emt 00:03:16]} 23.
Bh6 {[%clk 00:04:59]} {[%emt 00:02:05]} Bf6 {[%clk 00:00:29]} {[%emt 00:00:54]}
24. Bg5 {[%clk 00:04:37]} {[%emt 00:00:27]} Bxg5 {[%clk 00:00:09]} {[%emt
00:00:25]} 25. Nxg5 {[%clk 00:04:37]} {[%emt 00:00:04]} h5 {[%clk 00:00:13]} 26.
Bxh5 {[%clk 00:04:23]} {[%emt 00:00:20]} Be8 {[%clk 00:00:12]} {[%emt
00:00:06]} 27. Bg4 {[%clk 00:03:43]} {[%emt 00:00:43]} 1-0